[Event "XI Paracin Festival 2018"]
[Site "Paracin"]
[Date "2018.07.07"]
[Round "3"]
[White "Vujacic, Borivoje"]
[Black "Mcphillips, Joseph"]
[Result "0-1"]
[ECO "C06"]
[WhiteElo "2211"]
[BlackElo "2402"]
[Annotator "NA"]
[PlyCount "84"]
[EventDate "2018.07.06"]
[EventType "swiss"]
[EventCountry "SRB"]
[SourceTitle "playchess.com"]
[Source "ChessBase"]
[SourceQuality "1"]
[TimeControl "5400+30"]

1. e4 {[%emt 0:00:00]} e6 {[%emt 0:03:16]} 2. d4 {[%emt 0:00:12]} d5 {[%emt 0:00:01]} 3. Nd2 {[%emt 0:00:47]} Nf6 {[%emt 0:00:02]} 4. e5 {[%emt 0:00:39]} Nfd7 {[%emt 0:00:01]} 5. Bd3 {[%emt 0:00:56]} c5 {[%emt 0:00:02]} 6. c3 {[%emt 0:00:13]} Nc6 {[%emt 0:00:01]} 7. Ne2 {[%emt 0:00:33]} cxd4 {[%emt 0:00:02]} 8. cxd4 {[%emt 0:00:12]} f6 {[%emt 0:00:01]} 9. exf6 {[%emt 0:00:48]} Nxf6 {[%emt 0:00:02]} 10. Nf3 {[%emt 0:01:18]} Bd6 {[%emt 0:00:01]} 11. O-O {[%emt 0:00:33]} Qc7 {[%emt 0:00:02]} 12. Nc3 {[%emt 0:03:08]} a6 {[%emt 0:00:00]} 13. Bg5 {[%emt 0:04:05]} O-O {[%emt 0:00:02]} 14. Rc1 {[%emt 0:06:16]} h6 {[%emt 0:02:28]} 15. Bh4 {[%emt 0:06:58]} Nh5 {[%emt 0:34:03]} 16. Re1 {[%emt 0:11:27]} Qf7 {[%emt 0:07:23]} 17. Be2 {[%emt 0:20:14]} Nf4 {[%emt 0:18:04]} 18. Bg3 {[%emt 0:03:36]} Bd7 {[%emt 0:00:53]} 19. Na4 {[%emt 0:03:55]} Bb4 {[%emt 0:09:18]} 20. Nc3 {[%emt 0:03:10]} Bd6 {[%emt 0:03:33]} 21. Na4 {[%emt 0:00:06]} Bb4 {[%emt 0:00:01]} 22. Nc3 {[%emt 0:00:12]} Rae8 {[%emt 0:00:53]} 23. a3 {[%emt 0:02:12]} Bd6 {[%emt 0:00:54]} 24. Na4 {[%emt 0:00:30]} Re7 {[%emt 0:00:57]} 25. Nc5 {[%emt 0:04:46]} Be8 {[%emt 0:00:01]} 26. Nd3 {[%emt 0:05:13]} Qf6 {[%emt 0:00:36]} 27. Nxf4 {[%emt 0:02:39]} Bxf4 {[%emt 0:00:02]} 28. Rc3 {[%emt 0:00:48]} Bh5 {[%emt 0:00:46]} 29. Bxa6 {[%emt 0:04:26]} Bxg3 {[%emt 0:13:52]} 30. hxg3 {[%emt 0:00:50]} Bxf3 {[%emt 0:01:37]} 31. Rxf3 {[%emt 0:03:20]} Qxd4 {[%emt 0:00:04]} 32. Qxd4 {[%emt 0:02:08]} Nxd4 {[%emt 0:00:03]} 33. Rd3 {[%emt 0:01:34]} Nf5 {[%emt 0:01:29]} 34. Bb5 {[%emt 0:01:38]} Nd6 {[%emt 0:00:36]} 35. a4 {[%emt 0:01:41]} Nxb5 {[%emt 0:05:24]} 36. axb5 {[%emt 0:00:07]} Rd8 {[%emt 0:00:29]} 37. f4 {[%emt 0:01:28]} Rd6 {[%emt 0:00:13]} 38. Re5 {[%emt 0:02:44]} g6 {[%emt 0:00:42]} 39. Kf2 {[%emt 0:00:32]} Rc7 {[%emt 0:00:26]} 40. g4 {[%emt 0:02:29]} Kf7 {[%emt 0:00:13]} 41. Rc3 {[%emt 0:01:36]} Rxc3 {[%emt 0:01:13]} 42. bxc3 {[%emt 0:00:06]} Kf6 {[%emt 0:00:14]} 0-1

[Event "XI Paracin Festival 2018"]
[Site "Paracin"]
[Date "2018.07.07"]
[Round "3"]
[White "Trifunovic, Miroljub"]
[Black "Brankovic, Dejan"]
[Result "0-1"]
[ECO "A49"]
[WhiteElo "2198"]
[BlackElo "2377"]
[Annotator "NA"]
[PlyCount "78"]
[EventDate "2018.07.06"]
[EventType "swiss"]
[EventCountry "SRB"]
[SourceTitle "playchess.com"]
[Source "ChessBase"]
[SourceQuality "1"]
[TimeControl "5400+30"]

1. d4 {[%emt 0:00:00]} Nf6 {[%emt 0:00:00]} 2. Nf3 {[%emt 0:00:00]} g6 {[%emt 0:00:00]} 3. g3 {[%emt 0:00:06]} Bg7 {[%emt 0:00:01]} 4. Bg2 {[%emt 0:00:06]} O-O {[%emt 0:00:16]} 5. O-O {[%emt 0:00:14]} d6 {[%emt 0:00:36]} 6. h3 {[%emt 0:01:08]} c6 {[%emt 0:02:39]} 7. c4 {[%emt 0:02:45]} a6 {[%emt 0:00:06]} 8. a4 {[%emt 0:01:51]} a5 {[%emt 0:00:05]} 9. Nc3 {[%emt 0:00:55]} Na6 {[%emt 0:01:58]} 10. e4 {[%emt 0:08:35]} Nd7 {[%emt 0:04:42]} 11. Be3 {[%emt 0:11:42]} e5 {[%emt 0:03:35]} 12. Qd2 {[%emt 0:10:07]} exd4 {[%emt 0:02:49]} 13. Nxd4 {[%emt 0:01:01]} Nac5 {[%emt 0:15:03]} 14. Ra3 {[%emt 0:09:58]} Ne5 {[%emt 0:12:24]} 15. Qe2 {[%emt 0:09:24]} Re8 {[%emt 0:03:20]} 16. Rd1 {[%emt 0:01:19]} Qe7 {[%emt 0:04:53]} 17. f4 {[%emt 0:16:20]} Ned7 {[%emt 0:00:50]} 18. Bf2 {[%emt 0:02:03]} f5 {[%emt 0:07:41]} 19. e5 {[%emt 0:06:19]} dxe5 {[%emt 0:01:42]} 20. Nxc6 {[%emt 0:00:15]} bxc6 {[%emt 0:01:30]} 21. Bxc6 {[%emt 0:00:14]} Rb8 {[%emt 0:06:38]} 22. Qd2 {[%emt 0:04:56]} e4 {[%emt 0:04:28]} 23. Qd5+ {[%emt 0:01:20]} Kf8 {[%emt 0:04:02]} 24. Bxc5 {[%emt 0:01:42]} Qxc5+ {[%emt 0:00:15]} 25. Qxc5+ {[%emt 0:00:10]} Nxc5 {[%emt 0:00:04]} 26. Bxe8 {[%emt 0:01:02]} Kxe8 {[%emt 0:00:04]} 27. Nb5 {[%emt 0:01:21]} Bxb2 {[%emt 0:03:53]} 28. Ra2 {[%emt 0:00:10]} Bf6 {[%emt 0:00:39]} 29. Rd5 {[%emt 0:00:20]} Be7 {[%emt 0:03:23]} 30. Rad2 {[%emt 0:03:46]} Be6 {[%emt 0:05:01]} 31. Re5 {[%emt 0:00:59]} Kf7 {[%emt 0:01:05]} 32. Nd6+ {[%emt 0:00:45]} Bxd6 {[%emt 0:00:05]} 33. Rxd6 {[%emt 0:00:09]} Rc8 {[%emt 0:00:42]} 34. Rd4 {[%emt 0:01:38]} Rc7 {[%emt 0:01:11]} 35. Rd8 {[%emt 0:01:14]} Bxc4 {[%emt 0:01:45]} 36. Rh8 {[%emt 0:01:20]} Kf6 {[%emt 0:00:57]} 37. Rf8+ {[%emt 0:00:19]} Bf7 {[%emt 0:00:26]} 38. Ra8 {[%emt 0:00:26]} Nd3 39. Ra6+ {[%emt 0:00:17]} Kg7 {[%emt 0:04:08]} 0-1

[Event "XI Paracin Festival 2018"]
[Site "Paracin"]
[Date "2018.07.07"]
[Round "3"]
[White "Bratkovic, Sham"]
[Black "Martic, Ivan"]
[Result "1/2-1/2"]
[ECO "C65"]
[WhiteElo "2190"]
[BlackElo "2375"]
[Annotator "NA"]
[PlyCount "58"]
[EventDate "2018.07.06"]
[EventType "swiss"]
[EventCountry "SRB"]
[SourceTitle "playchess.com"]
[Source "ChessBase"]
[SourceQuality "1"]
[TimeControl "5400+30"]

1. e4 {[%emt 0:00:34]} e5 {[%emt 0:00:00]} 2. Nf3 {[%emt 0:00:27]} Nc6 {[%emt 0:00:00]} 3. Bb5 {[%emt 0:01:07]} Nf6 {[%emt 0:00:11]} 4. d3 {[%emt 0:03:59]} d6 {[%emt 0:00:14]} 5. c3 {[%emt 0:01:16]} g6 {[%emt 0:00:13]} 6. O-O {[%emt 0:01:58]} Bg7 {[%emt 0:00:06]} 7. Nbd2 {[%emt 0:05:03]} O-O {[%emt 0:01:07]} 8. Re1 {[%emt 0:00:36]} a6 {[%emt 0:00:19]} 9. Ba4 {[%emt 0:00:20]} b5 {[%emt 0:00:13]} 10. Bc2 {[%emt 0:00:50]} Bb7 {[%emt 0:00:57]} 11. Nf1 {[%emt 0:01:02]} Re8 {[%emt 0:05:30]} 12. a4 {[%emt 0:04:49]} b4 {[%emt 0:05:38]} 13. a5 {[%emt 0:04:50]} bxc3 {[%emt 0:03:31]} 14. bxc3 {[%emt 0:00:11]} Na7 {[%emt 0:03:01]} 15. Ba4 {[%emt 0:08:53]} Re7 {[%emt 0:04:27]} 16. Ne3 {[%emt 0:07:33]} h6 {[%emt 0:06:41]} 17. Nc4 {[%emt 0:05:24]} d5 {[%emt 0:12:43]} 18. exd5 {[%emt 0:06:00]} Nxd5 {[%emt 0:05:20]} 19. Qb3 {[%emt 0:08:55]} Nb5 {[%emt 0:05:16]} 20. Bxb5 {[%emt 0:03:51]} axb5 {[%emt 0:00:20]} 21. Ncxe5 {[%emt 0:01:36]} c5 {[%emt 0:02:13]} 22. d4 {[%emt 0:08:00]} Rxa5 {[%emt 0:05:26]} 23. Bd2 {[%emt 0:03:20]} c4 {[%emt 0:14:22]} 24. Qb2 {[%emt 0:00:46]} Rxa1 {[%emt 0:00:30]} 25. Rxa1 {[%emt 0:01:06]} Qe8 {[%emt 0:01:34]} 26. Ra5 {[%emt 0:02:58]} Nc7 {[%emt 0:04:43]} 27. Ra7 {[%emt 0:02:05]} Nd5 {[%emt 0:04:54]} 28. Ra5 {[%emt 0:01:09]} Nc7 {[%emt 0:03:23]} 29. Ra7 {[%emt 0:00:13]} Nd5 {[%emt 0:04:06]} 1/2-1/2

[Event "XI Paracin Festival 2018"]
[Site "Paracin"]
[Date "2018.07.07"]
[Round "3"]
[White "Sahin, Ozgun"]
[Black "Lajthajm, Borko"]
[Result "1/2-1/2"]
[ECO "B22"]
[WhiteElo "2166"]
[BlackElo "2422"]
[Annotator "NA"]
[PlyCount "171"]
[EventDate "2018.07.06"]
[EventType "swiss"]
[EventCountry "SRB"]
[SourceTitle "playchess.com"]
[Source "ChessBase"]
[SourceQuality "1"]
[TimeControl "5400+30"]

1. e4 {[%emt 0:00:00]} c5 {[%emt 0:00:00]} 2. c3 {[%emt 0:00:00]} a6 {[%emt 0:01:33]} 3. d4 {[%emt 0:00:00]} cxd4 {[%emt 0:00:05]} 4. cxd4 {[%emt 0:00:00]} d5 {[%emt 0:00:03]} 5. exd5 {[%emt 0:00:45]} Nf6 {[%emt 0:00:13]} 6. Nc3 {[%emt 0:00:06]} Nxd5 {[%emt 0:00:14]} 7. Bc4 {[%emt 0:00:45]} Nxc3 {[%emt 0:00:18]} 8. bxc3 {[%emt 0:00:04]} e6 {[%emt 0:00:42]} 9. Nf3 {[%emt 0:02:07]} Qc7 {[%emt 0:00:09]} 10. Qd3 {[%emt 0:01:38]} Nc6 {[%emt 0:02:49]} 11. Bb3 {[%emt 0:01:02]} Na5 {[%emt 0:01:04]} 12. Bc2 {[%emt 0:00:47]} Bd7 {[%emt 0:00:39]} 13. Ne5 {[%emt 0:18:15]} Rc8 {[%emt 0:02:48]} 14. Nxd7 {[%emt 0:05:32]} Qxd7 {[%emt 0:00:42]} 15. O-O {[%emt 0:02:38]} Qc6 {[%emt 0:00:06]} 16. Bd2 {[%emt 0:10:40]} Nc4 {[%emt 0:00:28]} 17. Rfe1 {[%emt 0:15:16]} Be7 {[%emt 0:09:33]} 18. Rac1 {[%emt 0:06:03]} Kf8 {[%emt 0:08:23]} 19. Bf4 {[%emt 0:06:19]} Ba3 {[%emt 0:06:47]} 20. Rb1 {[%emt 0:00:12]} Bd6 {[%emt 0:00:14]} 21. Qg3 {[%emt 0:01:34]} Qc7 {[%emt 0:07:24]} 22. Bxd6+ {[%emt 0:02:12]} Nxd6 {[%emt 0:00:08]} 23. Bd3 {[%emt 0:05:49]} h5 {[%emt 0:01:51]} 24. Rec1 {[%emt 0:02:24]} h4 {[%emt 0:00:24]} 25. Qf3 {[%emt 0:01:15]} h3 {[%emt 0:11:26]} 26. g3 {[%emt 0:00:13]} Rh6 {[%emt 0:00:24]} 27. c4 {[%emt 0:00:54]} Rf6 {[%emt 0:04:36]} 28. Qg4 {[%emt 0:00:46]} Qa5 {[%emt 0:00:35]} 29. Rc2 {[%emt 0:08:10]} b5 {[%emt 0:01:30]} 30. c5 {[%emt 0:00:06]} Qa4 {[%emt 0:05:45]} 31. Qxh3 {[%emt 0:01:47]} Ne8 {[%emt 0:00:13]} 32. d5 {[%emt 0:03:32]} Rh6 {[%emt 0:00:15]} 33. Qg2 {[%emt 0:00:02]} Qd4 {[%emt 0:00:07]} 34. Qe4 {[%emt 0:00:06]} Qxe4 {[%emt 0:02:30]} 35. Bxe4 {[%emt 0:00:02]} exd5 {[%emt 0:00:43]} 36. Bxd5 {[%emt 0:01:22]} Rh5 {[%emt 0:00:13]} 37. Rd1 {[%emt 0:01:09]} Nf6 {[%emt 0:00:54]} 38. Bb7 {[%emt 0:00:03]} Rhxc5 {[%emt 0:00:45]} 39. Rxc5 {[%emt 0:02:14]} Rxc5 {[%emt 0:00:06]} 40. Bxa6 {[%emt 0:00:02]} Nd5 {[%emt 0:01:49]} 41. Bb7 {[%emt 0:00:21]} Nc3 {[%emt 0:00:07]} 42. Rd8+ {[%emt 0:02:58]} Ke7 {[%emt 0:00:36]} 43. Ra8 {[%emt 0:00:02]} Rc4 {[%emt 0:01:23]} 44. Kf1 {[%emt 0:00:58]} Kd6 {[%emt 0:00:23]} 45. Ke1 {[%emt 0:00:29]} Rc7 {[%emt 0:02:44]} 46. Bf3 {[%emt 0:00:10]} Kc5 {[%emt 0:00:10]} 47. h4 {[%emt 0:01:52]} Kb4 {[%emt 0:00:27]} 48. g4 {[%emt 0:00:06]} Rc4 {[%emt 0:00:45]} 49. Ra7 {[%emt 0:01:00]} Rf4 {[%emt 0:00:07]} 50. Bc6 {[%emt 0:00:03]} Rxg4 {[%emt 0:00:45]} 51. Rxf7 {[%emt 0:00:07]} Nxa2 {[%emt 0:00:15]} 52. Rf5 {[%emt 0:01:07]} Nc3 {[%emt 0:00:21]} 53. Rg5 {[%emt 0:00:04]} Rxg5 {[%emt 0:00:26]} 54. hxg5 {[%emt 0:00:01]} Kc5 {[%emt 0:00:08]} 55. Bb7 {[%emt 0:00:43]} b4 {[%emt 0:00:21]} 56. Kd2 {[%emt 0:00:05]} Kc4 {[%emt 0:00:24]} 57. Ba6+ {[%emt 0:01:06]} Kd4 {[%emt 0:00:05]} 58. Kc2 {[%emt 0:00:53]} Ne4 {[%emt 0:00:27]} 59. f4 {[%emt 0:00:11]} g6 {[%emt 0:03:29]} 60. Bc8 {[%emt 0:00:48]} Nd6 {[%emt 0:01:00]} 61. Be6 {[%emt 0:00:32]} Ke4 {[%emt 0:00:12]} 62. Kb3 {[%emt 0:00:24]} Kxf4 {[%emt 0:00:29]} 63. Kxb4 {[%emt 0:00:01]} Kxg5 {[%emt 0:00:05]} 64. Kc5 {[%emt 0:00:06]} Ne4+ {[%emt 0:00:05]} 65. Kd4 {[%emt 0:00:40]} Kf4 {[%emt 0:00:08]} 66. Bd5 {[%emt 0:00:42]} Ng3 {[%emt 0:00:20]} 67. Kd3 {[%emt 0:00:32]} g5 {[%emt 0:00:04]} 68. Bb7 {[%emt 0:00:40]} Nf5 {[%emt 0:00:25]} 69. Ke2 {[%emt 0:00:08]} Nd6 {[%emt 0:02:06]} 70. Bd5 {[%emt 0:00:28]} g4 {[%emt 0:01:00]} 71. Kf2 {[%emt 0:00:12]} Nf5 {[%emt 0:00:30]} 72. Ba8 {[%emt 0:00:49]} Kg5 {[%emt 0:01:52]} 73. Bb7 {[%emt 0:00:33]} Kh4 {[%emt 0:00:08]} 74. Bf3 {[%emt 0:01:07]} g3+ {[%emt 0:00:11]} 75. Kg2 {[%emt 0:00:05]} Ne3+ {[%emt 0:00:35]} 76. Kg1 {[%emt 0:00:04]} Kh3 {[%emt 0:00:45]} 77. Bb7 {[%emt 0:00:09]} Kg4 {[%emt 0:00:41]} 78. Ba8 {[%emt 0:00:10]} Kf4 {[%emt 0:00:22]} 79. Bb7 {[%emt 0:00:05]} Nf5 {[%emt 0:00:25]} 80. Ba8 {[%emt 0:00:40]} Nd6 {[%emt 0:01:09]} 81. Bc6 {[%emt 0:00:39]} Nc4 {[%emt 0:00:37]} 82. Ba8 {[%emt 0:00:10]} Kg4 {[%emt 0:00:15]} 83. Bb7 {[%emt 0:00:16]} Ne5 {[%emt 0:00:09]} 84. Ba8 {[%emt 0:00:05]} Nf3+ {[%emt 0:00:04]} 85. Bxf3+ {[%emt 0:00:18]} Kxf3 {[%emt 0:00:05]} 86. Kh1 {[%emt 0:00:03]} 1/2-1/2

[Event "XI Paracin Festival 2018"]
[Site "Paracin"]
[Date "2018.07.07"]
[Round "3"]
[White "Mitev, Valentin"]
[Black "Ivic, Velimir"]
[Result "0-1"]
[ECO "A45"]
[WhiteElo "2086"]
[BlackElo "2432"]
[Annotator "NA"]
[PlyCount "62"]
[EventDate "2018.07.06"]
[EventType "swiss"]
[EventCountry "SRB"]
[SourceTitle "playchess.com"]
[Source "ChessBase"]
[SourceQuality "1"]
[TimeControl "5400+30"]

1. d4 {[%emt 0:00:00]} Nf6 {[%emt 0:00:00]} 2. Bg5 {[%emt 0:00:00]} e6 {[%emt 0:00:00]} 3. e4 {[%emt 0:00:05]} h6 {[%emt 0:00:06]} 4. Bxf6 {[%emt 0:00:06]} Qxf6 {[%emt 0:00:06]} 5. c3 {[%emt 0:00:03]} d6 {[%emt 0:00:42]} 6. Bd3 {[%emt 0:00:09]} e5 {[%emt 0:02:32]} 7. Ne2 {[%emt 0:00:08]} g6 {[%emt 0:01:09]} 8. O-O {[%emt 0:00:58]} Bg7 {[%emt 0:00:36]} 9. f4 {[%emt 0:01:15]} Qe7 {[%emt 0:00:12]} 10. dxe5 {[%emt 0:05:51]} dxe5 {[%emt 0:00:13]} 11. f5 {[%emt 0:00:24]} O-O {[%emt 0:06:05]} 12. Ng3 {[%emt 0:09:45]} Nd7 {[%emt 0:01:53]} 13. Qf3 {[%emt 0:00:49]} Nf6 {[%emt 0:07:04]} 14. Na3 {[%emt 0:02:48]} h5 {[%emt 0:01:12]} 15. Rfe1 {[%emt 0:06:11]} b6 {[%emt 0:09:53]} 16. Nc2 {[%emt 0:06:21]} Bb7 {[%emt 0:01:39]} 17. Ne3 {[%emt 0:07:16]} Rad8 {[%emt 0:07:32]} 18. Bc2 {[%emt 0:00:59]} Bh6 {[%emt 0:13:55]} 19. Ngf1 {[%emt 0:04:36]} Rd7 {[%emt 0:12:36]} 20. h3 {[%emt 0:05:48]} Bf4 {[%emt 0:05:15]} 21. g3 {[%emt 0:05:20]} Bh6 {[%emt 0:02:06]} 22. Re2 {[%emt 0:03:55]} Kg7 {[%emt 0:10:25]} 23. Rg2 {[%emt 0:03:16]} Rfd8 {[%emt 0:04:41]} 24. g4 {[%emt 0:04:36]} hxg4 {[%emt 0:03:10]} 25. Nxg4 {[%emt 0:02:54]} Bf4 {[%emt 0:04:17]} 26. fxg6 {[%emt 0:08:06]} fxg6 {[%emt 0:00:53]} 27. Nge3 {[%emt 0:00:48]} Kh7 {[%emt 0:02:11]} 28. Nd5 {[%emt 0:01:35]} Qc5+ {[%emt 0:00:51]} 29. Rf2 {[%emt 0:09:16]} Nxd5 {[%emt 0:01:29]} 30. exd5 {[%emt 0:00:06]} Qxd5 {[%emt 0:00:36]} 31. Qh5+ {[%emt 0:00:31]} Kg8 {[%emt 0:00:35]} 0-1

[Event "XI Paracin Festival 2018"]
[Site "Paracin"]
[Date "2018.07.09"]
[Round "4"]
[White "Perunovic, Milos"]
[Black "Gadimbayli, Abdulla"]
[Result "1/2-1/2"]
[ECO "C18"]
[WhiteElo "2596"]
[BlackElo "2420"]
[Annotator "ChessBase"]
[PlyCount "187"]
[EventDate "2018.07.06"]
[EventType "swiss"]
[EventCountry "SRB"]
[SourceTitle "playchess.com"]
[Source "ChessBase"]
[SourceQuality "1"]
[TimeControl "5400+30"]

1. e4 {[%emt 0:00:37]} e6 {[%emt 0:00:00]} 2. d4 {[%emt 0:00:23]} d5 {[%emt 0:00:00]} 3. Nc3 {[%emt 0:00:28]} Bb4 {[%emt 0:00:18]} 4. e5 {[%emt 0:00:19]} c5 {[%emt 0:00:08]} 5. a3 {[%emt 0:00:15]} Bxc3+ {[%emt 0:00:07]} 6. bxc3 {[%emt 0:00:07]} Ne7 {[%emt 0:00:24]} 7. Qg4 {[%emt 0:01:19]} Qc7 {[%emt 0:00:21]} 8. Bd3 {[%emt 0:04:38]} c4 {[%emt 0:00:59]} 9. Be2 {[%emt 0:00:31]} Nf5 {[%emt 0:04:25]} 10. Bd1 {[%emt 0:05:25]} Nc6 {[%emt 0:09:02]} 11. Ne2 {[%emt 0:05:10]} Bd7 {[%emt 0:08:08]} 12. Ng3 {[%emt 0:09:46]} O-O {[%emt 0:35:58]} 13. Nxf5 {[%emt 0:24:17]} exf5 {[%emt 0:00:07]} 14. Qg3 {[%emt 0:01:13]} Kh8 {[%emt 0:07:07]} 15. a4 {[%emt 0:04:15]} Rfe8 {[%emt 0:03:48]} 16. Ba3 {[%emt 0:04:49]} a6 {[%emt 0:11:09]} 17. Kd2 {[%emt 0:04:47]} b5 {[%emt 0:11:20]} 18. Bd6 {[%emt 0:01:17]} Qb6 {[%emt 0:00:43]} 19. Bh5 {[%emt 0:09:44]} Be6 {[%emt 0:00:28]} 20. Rhb1 {[%emt 0:00:19]} Qb7 {[%emt 0:02:31]} 21. Bf3 {[%emt 0:03:48]} Qd7 {[%emt 0:00:26]} 22. Qf4 {[%emt 0:00:54]} bxa4 {[%emt 0:01:35]} 23. h3 {[%emt 0:01:19]} Na7 {[%emt 0:01:16]} 24. g4 {[%emt 0:00:50]} Nb5 {[%emt 0:00:39]} 25. Bb4 {[%emt 0:01:36]} Rab8 {[%emt 0:00:40]} 26. Rg1 {[%emt 0:01:21]} Rg8 {[%emt 0:00:45]} 27. gxf5 {[%emt 0:00:51]} Bxf5 {[%emt 0:00:01]} 28. Rg5 {[%emt 0:00:08]} Bg6 {[%emt 0:00:06]} 29. h4 {[%emt 0:07:24]} h6 {[%emt 0:00:10]} 30. Rg3 {[%emt 0:00:46]} Nc7 {[%emt 0:01:28]} 31. Rag1 {[%emt 0:01:11]} Ne6 {[%emt 0:00:45]} 32. Qe3 {[%emt 0:00:07]} Bh7 {[%emt 0:00:31]} 33. Bg4 {[%emt 0:01:23]} Qa7 {[%emt 0:00:29]} 34. Ba3 {[%emt 0:00:45]} Qb7 {[%emt 0:00:30]} 35. Rc1 {[%emt 0:01:59]} Nc7 {[%emt 0:00:28]} 36. f4 {[%emt 0:00:29]} Nb5 {[%emt 0:00:18]} 37. Bb4 {[%emt 0:00:31]} a5 {[%emt 0:00:34]} 38. Bc5 {[%emt 0:00:04]} a3 {[%emt 0:00:34]} 39. f5 {[%emt 0:00:07]} a2 {[%emt 0:00:18]} 40. Ra1 {[%emt 0:02:49]} Nc7 {[%emt 0:00:17]} 41. Ba3 {[%emt 0:00:53]} Nb5 {[%emt 0:00:26]} 42. Bc5 {[%emt 0:00:41]} Nc7 {[%emt 0:00:16]} 43. Ba3 {[%emt 0:01:03]} Nb5 {[%emt 0:00:29]} 44. Bc5 {[%emt 0:00:24]} Nc7 {[%emt 0:00:39]} 45. Qe1 {[%emt 0:00:22]} Qb2 {[%emt 0:00:42]} 46. Qc1 {[%emt 0:00:05]} Na6 {[%emt 0:01:00]} 47. Ba3 {[%emt 0:01:05]} Qb1 {[%emt 0:00:30]} 48. Rg1 {[%emt 0:00:11]} Qb5 {[%emt 0:00:31]} 49. Bd6 {[%emt 0:00:23]} Rb6 {[%emt 0:00:30]} 50. Rxa2 {[%emt 0:00:06]} Qd7 {[%emt 0:00:30]} 51. Qf1 {[%emt 0:00:26]} f6 {[%emt 0:00:31]} 52. Rxa5 {[%emt 0:00:14]} Nb8 {[%emt 0:00:29]} 53. Rxd5 {[%emt 0:00:22]} Qf7 {[%emt 0:00:31]} 54. e6 {[%emt 0:00:40]} Qb7 {[%emt 0:00:18]} 55. Bf3 {[%emt 0:00:16]} Rb2 {[%emt 0:00:01]} 56. Qxc4 {[%emt 0:01:07]} Rc8 {[%emt 0:00:01]} 57. Bc5 {[%emt 0:00:44]} Qc7 {[%emt 0:00:00]} 58. Kc1 {[%emt 0:00:58]} Rb7 {[%emt 0:00:01]} 59. Rd6 {[%emt 0:00:37]} Ra7 {[%emt 0:00:17]} 60. e7 {[%emt 0:00:46]} Qxe7 {[%emt 0:01:02]} 61. Kd2 {[%emt 0:00:28]} Qxd6 {[%emt 0:00:18]} 62. Bxd6 {[%emt 0:00:03]} Rxc4 {[%emt 0:00:04]} 63. Bxb8 {[%emt 0:00:01]} Ra3 {[%emt 0:01:05]} 64. Be4 {[%emt 0:00:02]} Raxc3 {[%emt 0:00:30]} 65. Bd3 {[%emt 0:00:44]} Rxd3+ {[%emt 0:01:19]} 66. Kxd3 {[%emt 0:00:27]} Rc8 {[%emt 0:00:02]} 67. Bd6 {[%emt 0:00:19]} Bxf5+ {[%emt 0:00:02]} 68. Ke3 {[%emt 0:00:03]} Rc3+ {[%emt 0:00:36]} 69. Kf4 {[%emt 0:00:49]} Bxc2 {[%emt 0:00:08]} 70. Bf8 {[%emt 0:00:32]} g5+ {[%emt 0:00:40]} 71. Kg4 {[%emt 0:00:05]} Kh7 {[%emt 0:00:16]} 72. Re1 {[%emt 0:00:37]} Kg6 {[%emt 0:02:28]} 73. h5+ {[%emt 0:00:24]} Kf7 {[%emt 0:00:10]} 74. Bxh6 {[%emt 0:00:05]} Ba4 {[%emt 0:01:07]} 75. Bxg5 {[%emt 0:00:24]} Bd7+ {[%emt 0:00:04]} 76. Kf4 {[%emt 0:00:06]} fxg5+ {[%emt 0:00:04]} 77. Kxg5 {[%emt 0:00:03]} Rg3+ {[%emt 0:00:13]} 78. Kf4 {[%emt 0:00:08]} Rh3 {[%emt 0:00:22]} 79. Ke5 {[%emt 0:00:21]} Ke7 {[%emt 0:00:27]} 80. Kd5+ {[%emt 0:00:11]} Kd8 {[%emt 0:00:05]} 81. Re5 {[%emt 0:00:29]} Be8 {[%emt 0:00:10]} 82. Kd6 {[%emt 0:00:24]} Bxh5 {[%emt 0:00:13]} 83. Rb5 {[%emt 0:00:57]} Bg4 {[%emt 0:00:06]} 84. Rg5 {[%emt 0:00:14]} Rh6+ {[%emt 0:00:05]} 85. Ke5 {[%emt 0:00:22]} Bd7 {[%emt 0:00:14]} 86. d5 {[%emt 0:01:13]} Kc7 {[%emt 0:00:04]} 87. Rg7 {[%emt 0:00:04]} Rh5+ {[%emt 0:00:32]} 88. Kd4 {[%emt 0:00:05]} Kd8 {[%emt 0:00:15]} 89. Kc5 {[%emt 0:00:31]} Be6 {[%emt 0:00:26]} 90. Kd6 {[%emt 0:00:09]} Bxd5 {[%emt 0:00:28]} 91. Rd7+ {[%emt 0:00:09]} Ke8 {[%emt 0:00:05]} 92. Re7+ {[%emt 0:00:08]} Kf8 {[%emt 0:00:04]} 93. Re5 {[%emt 0:00:05]} Rxe5 {[%emt 0:00:02]} 94. Kxe5 {[%emt 0:00:03]} 1/2-1/2

[Event "XI Paracin Festival 2018"]
[Site "Paracin"]
[Date "2018.07.09"]
[Round "4"]
[White "Shyam, Sundar M"]
[Black "Parnali, S Dharia"]
[Result "1-0"]
[ECO "C50"]
[WhiteElo "2527"]
[BlackElo "2170"]
[Annotator "ChessBase"]
[PlyCount "91"]
[EventDate "2018.07.06"]
[EventType "swiss"]
[EventCountry "SRB"]
[SourceTitle "playchess.com"]
[Source "ChessBase"]
[SourceQuality "1"]
[TimeControl "5400+30"]

1. e4 {[%emt 0:00:00]} e5 {[%emt 0:00:00]} 2. Nf3 {[%emt 0:00:01]} Nc6 {[%emt 0:00:00]} 3. Bc4 {[%emt 0:00:14]} Nf6 {[%emt 0:00:03]} 4. d3 {[%emt 0:00:04]} Bc5 {[%emt 0:00:15]} 5. O-O {[%emt 0:00:10]} O-O {[%emt 0:01:00]} 6. Bg5 {[%emt 0:00:13]} h6 {[%emt 0:00:23]} 7. Bh4 {[%emt 0:00:04]} d6 {[%emt 0:04:32]} 8. c3 {[%emt 0:00:10]} Bg4 {[%emt 0:02:27]} 9. h3 {[%emt 0:01:00]} Be6 {[%emt 0:00:42]} 10. Nbd2 {[%emt 0:01:30]} Bb6 {[%emt 0:01:10]} 11. Re1 {[%emt 0:06:46]} Qd7 {[%emt 0:01:43]} 12. Bxf6 {[%emt 0:03:28]} gxf6 {[%emt 0:02:22]} 13. Nh4 {[%emt 0:00:22]} Kh7 {[%emt 0:03:04]} 14. Qf3 {[%emt 0:08:39]} Rg8 {[%emt 0:01:56]} 15. Qxf6 {[%emt 0:04:22]} Rg7 {[%emt 0:07:22]} 16. Kh2 {[%emt 0:01:08]} Rag8 {[%emt 0:00:33]} 17. Nf1 {[%emt 0:03:23]} Na5 {[%emt 0:04:45]} 18. Ne3 {[%emt 0:04:55]} Bxe3 {[%emt 0:03:32]} 19. Rxe3 {[%emt 0:00:02]} Nxc4 {[%emt 0:00:40]} 20. dxc4 {[%emt 0:00:02]} Bxc4 {[%emt 0:00:47]} 21. Rg3 {[%emt 0:10:14]} Rxg3 {[%emt 0:02:24]} 22. fxg3 {[%emt 0:00:12]} Be6 {[%emt 0:00:40]} 23. b3 {[%emt 0:02:51]} a5 {[%emt 0:02:33]} 24. Rf1 {[%emt 0:04:57]} Qd8 {[%emt 0:02:21]} 25. Qf2 {[%emt 0:02:40]} Qg5 {[%emt 0:03:09]} 26. Qe1 {[%emt 0:00:11]} b6 {[%emt 0:00:53]} 27. Rf3 {[%emt 0:00:23]} Ra8 {[%emt 0:00:44]} 28. Qf2 {[%emt 0:04:06]} Qe7 {[%emt 0:02:38]} 29. Nf5 {[%emt 0:01:04]} Bxf5 {[%emt 0:01:07]} 30. Rxf5 {[%emt 0:00:30]} Kg7 {[%emt 0:00:07]} 31. a4 {[%emt 0:04:54]} Qe6 {[%emt 0:00:46]} 32. c4 {[%emt 0:01:48]} Re8 {[%emt 0:03:44]} 33. g4 {[%emt 0:00:11]} Qg6 {[%emt 0:00:23]} 34. Qh4 {[%emt 0:01:10]} f6 {[%emt 0:00:33]} 35. Qf2 {[%emt 0:00:25]} Qf7 {[%emt 0:02:42]} 36. Qd2 {[%emt 0:00:08]} Rh8 {[%emt 0:01:03]} 37. Kg1 {[%emt 0:00:16]} Qe6 {[%emt 0:00:22]} 38. h4 {[%emt 0:02:43]} Rf8 {[%emt 0:02:03]} 39. Qf2 {[%emt 0:01:29]} Rf7 {[%emt 0:00:41]} 40. Qf3 {[%emt 0:00:39]} Kf8 {[%emt 0:01:09]} 41. Qe3 {[%emt 0:17:51]} Kg7 {[%emt 0:00:10]} 42. Rh5 {[%emt 0:00:15]} Kf8 {[%emt 0:00:37]} 43. Qxh6+ {[%emt 0:00:06]} Ke7 {[%emt 0:00:55]} 44. Rf5 {[%emt 0:00:06]} Qd7 {[%emt 0:02:37]} 45. g5 {[%emt 0:01:11]} Qc6 {[%emt 0:02:56]} 46. g6 {[%emt 0:01:39]} 1-0